Cogmind - Beta 15 @@@ ROGUE MODE // 2025.08.29 @ 10:54:55 Player: C0-2MO Result: Destroyed by QX-ATP(R) with Subdweller Machine Gun Performance ------------- Evolutions (0) 0 Regions Visited (2) 400 Robots Destroyed (13) 65 Value Destroyed (302) 302 Prototype IDs (0) 0 Alien Tech Used (0) 0 Bonus (0) 0 TOTAL SCORE: 767 Bonus ------- None Cogmind --------- Core Integrity 0/250 Matter 298/300 Energy 100/100 System Corruption 2% Temperature Cool (0) Movement Core (350) Ox6 Location -10/Subcaves Parts ------- > --- POWER (1) -------- (None) > --- PROPULSION (2) --- Compact Wheel > --- UTILITY (2) ------ Improved Heat Sink Large Storage Unit > --- WEAPON (2) ------- (None) > --- INVENTORY (15) --- Wheel Wheel High-capacity Storage Unit Peak State ------------ > --- POWER ------------ Ion Engine > --- PROPULSION ------- Light Treads Compact Wheel > --- UTILITY ---------- Improved Heat Sink Large Storage Unit > --- WEAPON ----------- Medium Laser Light Assault Rifle > --- INVENTORY -------- Light Ion Engine Light Treads Wheel Compact Wheel High-capacity Storage Unit [Rating: 9] Favorites ----------- Power Ion Engine Engine Ion Engine Propulsion Compact Wheel Treads Light Treads Wheel Compact Wheel Utility Large Storage Unit Device Seismic Detector Storage Large Storage Unit Protection Light Armor Plating Weapon Light Assault Rifle Energy Gun Medium Laser Ballistic Gun Light Assault Rifle Build | -11 -10 -10 ------- Run | Yrd Mat Sub Slots Evolved . | . . . Power . | . . . Propulsion . | . . . Utility . | . . . Weapon . | . . . Parts Attached 14 | 6 5 3 Power 2 | 1 . 1 Engine 2 | 1 . 1 Core . | . . . Reactor . | . . . Propulsion 6 | 2 3 1 Treads 2 | 1 . 1 Leg . | . . . Wheel 4 | 1 3 . Hover . | . . . Flight . | . . . Utility 4 | 1 2 1 Device 2 | 1 1 . Storage 1 | . 1 . Processor . | . . . Hackware . | . . . Protection 1 | . . 1 Artifact . | . . . Weapon 2 | 2 . . Energy Gun 1 | 1 . . Energy Cannon . | . . . Ballistic Gun 1 | 1 . . Ballistic Cannon . | . . . Launcher . | . . . Special Weapon . | . . . Impact Weapon . | . . . Slashing Weapon . | . . . Piercing Weapon . | . . . Special Melee Weapon . | . . . Unidentified Prototypes . | . . . Parts Lost 8 | . 2 6 Power 1 | . . 1 Propulsion 3 | . 1 2 Utility 2 | . 1 1 Weapon 2 | . . 2 Highest Loss Streak 6 | . 1 6 To Critical Strikes . | . . . Average Backups 4 | 2 5 4 Power . | . 1 . Propulsion 2 | 2 3 2 Utility 1 | . 1 1 Weapon . | . . . Tool/Special . | . . . Unused Backups 1 | . . 1 Power . | . . . Propulsion . | . . . Utility 1 | . . 1 Weapon . | . . . Tool/Special . | . . . Average Slot Usage (%) 91 | . 93 73 Engine 11 | . 12 2 Treads 10 | . 10 8 Wheel 16 | . 17 14 Device 10 | . 11 4 Storage 12 | . 11 14 Energy Gun 13 | . 14 10 Ballistic Gun 13 | . 14 12 Peak Build Rating 9 | 6 9 7 Average Rating 6 | 4 7 6 On Entrance 4 | . 6 8 Naked Turns . | . . . Heaviest Build 29 | 9 29 26 Greatest Support 32 | 16 32 26 Greatest Overweight (x) 1 | . 1 1 Average Overweight (x) . | . . . Largest Inventory Capacity 15 | 5 15 15 Average Capacity 12 | 5 13 15 Most Carried 7 | 4 7 6 Average Carried 4 | 2 5 4 Final Capacity 15 | 5 15 15 Final Carried 6 | 4 6 3 Class Distribution -------------------- 100% | Mutant Dominant Class ---------------- Mutant | -10/Materials Mutant | -10/Subcaves Resources | -11 -10 -10 ----------- Run | Yrd Mat Sub Matter Collected 377 | 267 56 54 Remotely . | . . . Salvage Created 446 | 98 294 54 Parts 28 | 8 18 2 Haulers Intercepted . | . . . Recyclers Shooed 1 | 1 . . Parts Field Recycled . | . . . Retrieved Matter . | . . . Parts Self-Destructed . | . . . Prevented . | . . . Kills | -11 -10 -10 ------- Run | Yrd Mat Sub Combat Hostiles Destroyed 9 | . 8 1 Guns 9 | . 8 1 Classes Destroyed 6 | 2 3 1 Tunneler 2 | 2 . . Recycler 1 | 1 . . Operator 1 | . 1 . Swarmer 3 | . 3 . Grunt 5 | . 5 . Subdweller 1 | . . 1 Best Kill Streak 4 | 2 4 1 Combat Bots Only 4 | . 4 1 Max Kills in Single Turn 1 | 1 1 1 Gunslinging . | . . . Exploded . | . . . Melee . | . . . Uniques/NPCs Destroyed . | . . . Combat | -11 -10 -10 -------- Run | Yrd Mat Sub Hostile Shots Fired 73 | . 48 25 Missed 18 | . 15 3 Hits 55 | . 33 22 Projectile 55 | . 33 22 Critical Strikes 2 | . 1 1 Damage Taken 964 | . 437 527 Core 252 | . 91 161 Absorbed by Shields . | . . . Core Remaining (%) 100 | 100 . . Volleys Fired 45 | 7 28 10 Largest 2 | 2 2 2 Hottest 70 | 70 70 70 Shots Fired 83 | 14 56 13 Gun 83 | 14 56 13 Cannon . | . . . Launcher . | . . . Special . | . . . Kinetic 45 | 7 28 10 Thermal 38 | 7 28 3 Explosive . | . . . Electromagnetic . | . . . Robot Hit Streak 9 | 3 5 9 Robot Miss Streak 3 | 1 3 1 Penetration Max . | . . . Secondary Targets 2 | . 2 . Max Gunslinging Chain 1 | . 1 . Shots Hit Robots 52 | 8 32 12 Core Hits 27 | 5 17 5 Critical Kills . | . . . Critical Parts Destroyed . | . . . Critical Strikes 2 | . 2 . Burn 2 | . 2 . Melee Attacks . | . . . Impact . | . . . Slashing . | . . . Piercing . | . . . Sneak Attacks . | . . . Combat Hostiles . | . . . Follow-up Attacks . | . . . Damage Inflicted 586 | 91 374 121 Guns 574 | 91 367 116 Cannons . | . . . Explosions . | . . . Melee . | . . . Ramming 12 | . 7 5 Kinetic 266 | 41 145 80 Thermal 308 | 50 222 36 Explosive . | . . . Electromagnetic . | . . . Impact . | . . . Slashing . | . . . Piercing . | . . . Highest Corruption 2 | . 2 2 Average Corruption 2 | . 2 2 Corruption Purged . | . . . Corruption Blocked . | . . . Effects 2 | . 2 . Message Errors 1 | . 1 . Matter Fused 1 | . 1 . Overload Shots . | . . . Overflow Damage . | . . . Projectiles . | . . . Explosions . | . . . Melee . | . . . Knockbacks . | . . . Impact . | . . . Kinetic . | . . . Secondary . | . . . Self-Inflicted Damage 3 | . 3 . Shots . | . . . Rammed 5 | . 1 4 Targets Rammed 5 | . 1 4 Kicked . | . . . Crushed . | . . . Highest Temperature 277 | 100 227 277 Average Temperature 80 | 45 76 176 Received Heat Transfer 561 | . 210 351 Effects 1 | . . 1 Interference 1 | . . 1 Siege Activations . | . . . Martial Activations . | . . . Shielding Activations . | . . . Robots Disrupted . | . . . Combat Hostiles . | . . . Robots Corrupted . | . . . Combat Hostiles . | . . . Parts Fried . | . . . Impact Corruptions . | . . . Robots Melted . | . . . Combat Hostiles . | . . . Parts Melted 2 | . 2 . Heat Transferred 1036 | 148 777 111 Parts Sabotaged . | . . . Parts Stolen . | . . . Parts Stripped . | . . . Power Chain Reactions . | . . . Alert | -11 -10 -10 ------- Run | Yrd Mat Sub Maximum Alert Level . | . . . Low Security (%) 100 | 100 100 . Level 1 . | . . . Level 2 . | . . . Level 3 . | . . . Level 4 . | . . . Level 5 . | . . . High Security . | . . . Max Security . | . . . Peak Influence 113 | 10 113 . Initial . | . . . Average 43 | . 48 . Influence Increases 348 | 15 333 . Destroy 0b10 Robot/C 160 | . 160 . Destroy 0b10 Robot/NC 20 | 15 5 . Destroy Leader 40 | . 40 . Successful Hack 38 | . 38 . Select Force Hacks 30 | . 30 . Lose Combat Pursuer 60 | . 60 . Influence Decreases 348 | 15 289 44 Entered New Map 22 | . . 22 Time Decay 294 | 15 269 10 Lost Part 32 | . 20 12 Squads Dispatched 2 | . 2 . Investigation 1 | . 1 . Extermination . | . . . Reinforcement 1 | . 1 . Assault . | . . . Garrison . | . . . Intercept . | . . . Searches Triggered . | . . . Construction Impeded . | . . . Haulers Reinforced . | . . . Active Scanning Responses . | . . . Cargo Convoy Interrupts . | . . . Stealth | -11 -10 -10 --------- Run | Yrd Mat Sub Distress Signals 2 | . 2 . Communications Jammed . | . . . Distress Signals . | . . . Times Spotted 25 | . 23 2 Peak Tracking Total 4 | . 4 2 Tactical Retreats 3 | . 3 . Traps | -11 -10 -10 ------- Run | Yrd Mat Sub Traps Triggered 3 | . 3 . Indirectly . | . . . Trap Hack Attempts . | . . . Triggered . | . . . Disarmed . | . . . Reprogrammed . | . . . Reused . | . . . Traps Extracted . | . . . Installed . | . . . Triggered . | . . . Machines | -11 -10 -10 ---------- Run | Yrd Mat Sub Machines Disabled . | . . . Max in Single Turn . | . . . Machines Repaired . | . . . Machines Dismantled . | . . . Machines Sabotaged . | . . . Overloaded Fab Kills . | . . . Hacking | -11 -10 -10 --------- Run | Yrd Mat Sub Machines Accessed 8 | . 8 . Terminals 7 | . 7 . Fabricators . | . . . Repair Stations . | . . . Recycling Units 1 | . 1 . Scanalyzers . | . . . Garrison Access . | . . . Total Hacks 33 | . 33 . Successful 20 | . 20 . Failed 13 | . 13 . Catastrophic 1 | . 1 . Database Lockouts . | . . . Manual 32 | . 32 . Terminals 32 | . 32 . Fabricators . | . . . Repair Stations . | . . . Recycling Units 1 | . 1 . Scanalyzers . | . . . Garrison Access . | . . . Terminal Hacks 7 | . 7 . Robot Schematic 1 | . 1 . Robot Analysis 4 | . 4 . Terminal Index 1 | . 1 . Zone Layout 1 | . 1 . Fabricator Hacks . | . . . Repair Station Hacks . | . . . Recycling Unit Hacks . | . . . Scanalyzer . | . . . Garrison Access Hacks . | . . . Unauthorized Hacks 13 | . 13 . Terminals 12 | . 12 . Track 2 | . 2 . Assimilate 1 | . 1 . Botnet 4 | . 4 . Skim 5 | . 5 . Fabricators . | . . . Repair Stations . | . . . Recycling Units 1 | . 1 . Tunnel 1 | . 1 . Scanalyzers . | . . . Garrison Access . | . . . Data Cores Recovered 1 | . 1 . Used . | . . . Hacking Detections 7 | . 7 . Full Trace Events . | . . . Feedback Events . | . . . Feedback Blocked . | . . . Robot Schematics Acquired 1 | . 1 . Robots Built . | . . . Authchips . | . . . Time . | . . . Total Robot Build Rating . | . . . Part Schematics Acquired . | . . . Parts Built . | . . . Authchips . | . . . Time . | . . . Total Part Build Rating . | . . . Parts Repaired . | . . . Time . | . . . Parts Recycled . | . . . Recycled Matter . | . . . Retrieved Matter . | . . . Retrieved Components . | . . . Parts Scanalyzed . | . . . Part Schematics Acquired . | . . . Parts Damaged . | . . . Bothacking | -11 -10 -10 ------------ Run | Yrd Mat Sub Used RIF Installer . | . . . Robots Hacked . | . . . Non-combat . | . . . Combat . | . . . Robot Hacks Applied . | . . . Relay Couplers Released . | . . . Fabnet Peak Effective % . | . . . Robots Rewired . | . . . Allies Hacked . | . . . Hacks Repelled . | . . . Allies | -11 -10 -10 -------- Run | Yrd Mat Sub Total Allies . | . . . Largest Group . | . . . Highest-Rated Group . | . . . Highest-Rated Ally . | . . . Total Orders . | . . . Ally Attacks . | . . . Total Damage . | . . . Kills . | . . . Allies Corrupted . | . . . Allies Melted . | . . . Intel | -11 -10 -10 ------- Run | Yrd Mat Sub Active Infowar (turns) 429 | 38 391 . Seismic 429 | 38 391 . Robot Analysis Total 4 | . 4 . Derelict Logs Recovered 1 | . . 1 Drone Launches . | . . . Drone Recoveries . | . . . Exploration | -11 -10 -10 ------------- Run | Yrd Mat Sub Turns Passed 920 | 79 788 53 Spaces Moved 636 | 48 571 17 Core 2 | 2 . . Treads 30 | . 30 . Legs . | . . . Wheels 604 | 46 541 17 Hover . | . . . Flight . | . . . Fastest Speed 50 | 50 90 90 Average Speed 110 | 97 112 91 Slowest Speed 240 | 100 240 115 Overloaded Moves . | . . . Propulsion Burnouts . | . . . Robots Hopped . | . . . Potential Cave-ins . | . . . Cave-ins Triggered . | . . . Exploration Rate (%) 31 | 4 87 3 Regions Visited 2 Branch Regions 1 Pre-discovered Areas 3 | . 3 . Known Exits Taken 1 | . 1 . Unknown Exits Taken 1 | 1 . . Scrap Searched . | . . . Spaces Dug . | . . . Terrain Destroyed . | . . . Melee . | . . . Projectile . | . . . AOE . | . . . Terrain Rammed . | . . . Walls Destroyed . | . . . Machines Disabled . | . . . Actions | -11 -10 -10 --------- Run | Yrd Mat Sub Total 765 | 64 663 38 Wait 54 | . 53 1 Move 634 | 47 570 17 Hop . | . . . Pick Up 8 | 4 4 . Fast Attach 8 | 6 2 . Attach 5 | . 2 3 Detach . | . . . Swap 5 | . 2 3 Drop 1 | . 1 . Fire 45 | 7 28 10 Melee . | . . . Ram 3 | . 1 2 Kick . | . . . Crush 2 | . . 2 Escape Stasis . | . . . Rewire . | . . . Trap . | . . . Miscellaneous . | . . . Route ------- -11/Scrapyard -10/Materials (discovered 6 exits: *Mat x3 / *Min x2 / *Sub) -10/Subcaves (discovered 3 exits: Mat x2 / Rec) History --------- Turn | Location | Event 2 | -11/Scrapyard | Met Revision 17 9 | -11/Scrapyard | Discovered new exit (range 15) 80 | -11/Scrapyard | Entered Materials 146 | -10/Materials | Discovered new exit (range 3) 314 | -10/Materials | Build established: Mutant 323 | -10/Materials | Discovered new exit (range 3) 421 | -10/Materials | Learned location of Mines (-9) 462 | -10/Materials | Identified exit to Materials 495 | -10/Materials | Learned location of 1 exit from Storage 519 | -10/Materials | Learned location of 2 exits from Subcaves 520 | -10/Materials | Discovered new exit (range 8) 534 | -10/Materials | Learned 2 Storage zone layouts 539 | -10/Materials | Learned location of Recycling (-8) 556 | -10/Materials | Identified exit to Subcaves 556 | -10/Materials | Identified exit to Mines 868 | -10/Materials | Entered Subcaves 869 | -10/Subcaves | Approached by a straggling Scientist 869 | -10/Subcaves | Identified exit to Materials 870 | -10/Subcaves | Identified exit to Recycling 878 | -10/Subcaves | Learned 4 Materials zone layouts 901 | -10/Subcaves | Core integrity fell below 50% 909 | -10/Subcaves | Core integrity fell below 20% 921 | -10/Subcaves | Destroyed by QX-ATP(R) with Subdweller Machine Gun Last Messages --------------- At least I think I can... The group I got separated from was talking about a shortcut back to the UFD." 00878_ Acquired derelict log, extracted data. Data stored: Materials zone layouts (x4). 00881_ T2-KEI(c) destroyed. 00890_ Critical hit (Meltdown: +270). 00893_ Lgt. Treads destroyed. 00896_ Overheating: System interference. 00896_ Med. Laser temporarily disabled. 00897_ Lgt. Ion Engine destroyed. 00899_ Subatomizers dissect the Lgt. Ion Engine. 00899_ Lgt. Armor Plating destroyed. 00904_ Med. Laser destroyed. 00910_ CL-JFR(R) destroyed. 00911_ Lgt. Assault Rifle destroyed. 00912_ Acquired 54 matter. 00914_ Slammed into QX-ATP(R). 00919_ Lgt. Treads destroyed. 00919_ Slammed into QX-ATP(R). Map ----- +----------------------------------------------------+ | ??????????????????????????????????????????????? | | ??????????????????????????????????????????????? | | ??????????????????????????????????????????????? | | ??????????????????????????????????????????????? | | ??????????????????????????????????????????????? | | ??????????????????????????????????????????????? | | ??????????????????????????????????????????????? | | ??????????????????????????????????????????????? | | ??????????????????????????????????????????????? | | ??????????????????????????????????????????????? | | ??????????????????????????????????????????????? | | ??????????????????????????????????????????????? | | ???????????????????#??????????????????????????? | | ?????????????????"? ??????????????????????????? | | ????????????????? " ??????????????????????????? | | ???????????????## " ??????????????????????????? | | ???????????????# "" ??????????????????????????? | | ??????????????## ""#??????????????????????????? | | ?????????????## "" #??????????????????????????? | | ???????????### "" ??????????????????????????? | | ??????????## " ??????????????????????????? | | ?????????## #" #?????#####????????????????? | | ?????????# "" ####??# ##???????????????? | | ?????????#" " #### #???????????????? | | ??????????## ""## ## #????????????????? | | ????????????????# ! @R ##????????????????? | | ????????????????# = ! ##????????????????? | | ????????????????## !%* #????????????????? | | ??????????????#### ! #????????????????? | | ??????????????#" #????????????????? | | ?????????????#"" #????????????????? | | ????????????# ""## #???????????????? | | ????????????"" #?## ### #???????????????? | | ???????????? ##???# #?# #???????????????? | | ????????????##?????# ?# ##???????????????? | | ???????????????????# ? ##????????????????? | | ??????????????????? ##?????????????????? | | ?????????????????? ##??????????????????? | | ?????????????????## ????????????????????? | | ?????????????????? ????????????????????? | | ?????????????????### ###????????????????????? | | ???????????????????####???????????????????????? | | ??????????????????????????????????????????????? | | ??????????????????????????????????????????????? | | ??????????????????????????????????????????????? | | ??????????????????????????????????????????????? | | ??????????????????????????????????????????????? | | ??????????????????????????????????????????????? | | ??????????????????????????????????????????????? | | ??????????????????????????????????????????????? | +----------------------------------------------------+ Best States ------------- Heat Dissipation 39 Energy Generation 10 Energy Capacity 250 Matter Stores 300 Matter Capacity 300 Sight Range 16 Terrain Scan Density 10 Armor Coverage 150 Evasion (%) 42 Recoil Reduction 2 Item Schematics ----------------- None Robot Schematics ------------------ M-13 Machinist | -10/Materials | Hacked Fabricated ------------ Nothing Repaired ---------- Nothing Alien Tech Used ----------------- None Achievements -------------- None Challenges ------------ None Game ------ Seed AutogunPhasingMagmablaster Manual? 0 Play Time 00:10:58 Cumulative 497.0 hours Start 2025.08.29 @ 10:44:56 End 2025.08.29 @ 10:54:55 Sessions 1 Manual Loads 0 Difficulty Rogue Special Mode None Game No. 214 Rogue 214 Adventurer 0 Explorer 0 Win Type - Total 34 Types 14/2/6/2/5/1/0/2/0/2 Lore% 95 Gallery% 87 Achievement% 80 Wizard Run 0 Options --------- Layout 1 ASCII 0 Keyboard 0 Movement Numpad Keybinds 0 Fullscreen 1 Font 24/Smallcaps Map View 50x35 Zoom Use 0% Tactical HUD 1 Map Filters NONE Filters NONE Steam 1 RUN: 5bb73e4a-be73-4260-94d0-0f560d038d1e